bitfinex/quotes_SOLUSD_20241222
["timestamp","ask_amount","ask_price","bid_price","bid_amount"]
[1734839421387,2.50073347,181.57,181.46,36.42034898]
[1734839421602,0.3267639,181.57,181.47,0.82631534]
[1734839421778,7.28465998,181.58,181.49,29.86604898]
[1734839421977,0.3267639,181.59,181.5,0.82616637]
[1734839422177,0.3267639,181.61,181.48,1.5128]
[1734839422864,0.3267639,181.61,181.5,29.86604898]
[1734839423064,0.3267639,181.61,181.5,30.6921894]
[1734839423260,0.3267639,181.64,181.53,36.42034898]
[1734839424802,24.1036479,181.64,181.53,6.5543]
[1734839425099,1.60237775,181.63,181.53,6.5543]
[1734839425275,0.3267639,181.62,181.53,6.5543]
[1734839426206,20.0,181.6,181.49,6.5543]
[1734839426366,0.3267639,181.59,181.49,6.5543]
[1734839426570,20.0,181.58,181.49,6.5543]
[1734839426801,0.3267639,181.57,181.49,6.5543]
[1734839426995,25.70602565,181.57,181.48,1.5128]
[1734839427179,20.0,181.54,181.44,8.0671]
[1734839427385,0.3267639,181.53,181.44,8.0671]
[1734839427774,0.3267639,181.53,181.44,37.93314898]
[1734839428201,0.3267639,181.56,181.47,29.86604898]
[1734839429382,0.3267639,181.56,181.45,29.86604898]
[1734839429715,0.3267639,181.56,181.44,8.0671]
[1734839429916,0.3267639,181.56,181.44,37.93314898]
[1734839430574,20.0,181.54,181.44,8.0671]
[1734839430887,0.3267639,181.53,181.44,8.0671]
[1734839433206,0.10578053,181.45,181.44,8.0671]
[1734839433499,0.10578053,181.45,181.44,37.93314898]
[1734839435183,0.10578053,181.45,181.44,8.0671]
[1734839435898,20.0,181.55,181.44,8.0671]
[1734839438384,20.0,181.55,181.44,37.93314898]
[1734839438581,20.0,181.55,181.44,8.0671]
[1734839439520,20.0,181.55,181.38,37.80074898]
[1734839439521,20.0,181.51,181.38,37.80074898]
[1734839439724,20.0,181.51,181.38,7.9347]
[1734839439890,0.8992,181.52,181.38,37.80074898]
[1734839439891,20.0,181.5,181.38,37.80074898]
[1734839440084,20.0,181.5,181.38,7.9347]
[1734839441617,20.0,181.46,181.38,7.9347]
[1734839446699,20.0,181.46,181.34,20.02738862]
[1734839446903,20.0,181.46,181.34,26.32748862]
[1734839447633,20.0,181.46,181.34,7.9347]
[1734839449644,20.0,181.46,181.36,18.39278862]
[1734839449938,0.8992,181.52,181.41,18.39278862]
[1734839450116,0.8992,181.52,181.42,18.39278862]
[1734839450315,0.8992,181.52,181.42,20.02738862]
[1734839450506,0.8992,181.52,181.42,1.6346]
[1734839450865,0.8992,181.52,181.42,20.02738862]
[1734839451836,0.8992,181.52,181.42,1.6346]
[1734839452724,23.776884,181.51,181.39,29.88311241]
[1734839452930,20.0,181.48,181.39,29.88311241]
[1734839453133,0.10726856,181.43,181.39,29.88311241]
[1734839457348,0.10726856,181.43,181.38,38.55699251]
[1734839458138,0.10726856,181.43,181.38,8.6738801]
[1734839460926,0.10726856,181.43,181.4,29.88311241]
[1734839461125,0.10726856,181.43,181.42,29.88311241]
[1734839463922,0.11195887,181.44,181.43,20.0553]
[1734839464123,1.4171,181.61,181.43,82.19485788]
[1734839464348,0.029193,181.5,181.48,29.88311241]
[1734839464548,0.029193,181.5,181.49,30.70919317]
[1734839464719,0.029193,181.5,181.49,36.98509317]
[1734839465120,4.263e-05,181.51,181.49,52.30699317]
[1734839465321,4.263e-05,181.51,181.5,29.88311241]
[1734839466022,3.681e-05,181.52,181.51,13.7733]
[1734839466222,0.8992,181.69,181.52,23.776884]
[1734839466447,0.8992,181.69,181.6,29.88311241]
[1734839466626,1.4173,181.71,181.61,29.88311241]
[1734839467357,1.4173,181.71,181.59,30.70879838]
[1734839467761,21.4173,181.71,181.59,30.70879838]
[1734839468057,21.4173,181.71,181.6,29.88311241]
[1734839468214,1.4173,181.71,181.6,29.88311241]
[1734839469154,0.8992,181.73,181.62,29.88311241]
[1734839469457,0.8992,181.73,181.64,29.88311241]
[1734839471249,0.8992,181.73,181.63,30.70872338]
[1734839471585,23.776884,181.72,181.6,30.70868862]
[1734839471747,20.0,181.69,181.61,29.88311241]
[1734839472444,0.8992,181.73,181.64,29.88311241]
[1734839472673,1.4173,181.76,181.65,29.88311241]
[1734839473054,0.1116243,181.66,181.65,29.88311241]
[1734839474187,0.11280356,181.67,181.65,29.88311241]
[1734839474188,0.11280356,181.67,181.66,6.4094]
[1734839474362,0.11280356,181.67,181.66,27.08175725]
[1734839474549,3.56e-06,181.67,181.66,27.08175725]
[1734839474754,0.00901112,181.69,181.66,27.08175725]
[1734839474953,0.00901112,181.69,181.68,18.33854343]
[1734839475144,0.00901112,181.69,181.68,19.16369977]
[1734839475986,5.051e-05,181.7,181.68,32.92409977]
[1734839476168,5.051e-05,181.7,181.69,29.7729111]
[1734839476750,5.051e-05,181.7,181.69,30.59821215]
[1734839478700,5.051e-05,181.7,181.68,29.7729111]
[1734839478877,5.051e-05,181.7,181.69,30.59827759]
[1734839482267,5.051e-05,181.7,181.67,30.59824974]
[1734839482873,5.051e-05,181.7,181.68,29.7729111]
[1734839483171,5.051e-05,181.7,181.69,0.82531226]
[1734839483598,5.051e-05,181.7,181.69,30.59822336]
[1734839483767,5.051e-05,181.7,181.68,29.7729111]
[1734839484294,5.051e-05,181.7,181.69,30.59825166]
[1734839485313,5.051e-05,181.7,181.69,44.35795166]
[1734839486017,5.051e-05,181.7,181.69,30.59825166]
[1734839486394,5.051e-05,181.7,181.69,44.35795166]
[1734839486917,9.422e-05,181.72,181.69,44.35795166]
[1734839487085,0.8992,181.86,181.71,59.5458222]
[1734839487406,6.473e-05,181.74,181.73,43.5295111]
[1734839487590,6.473e-05,181.74,181.73,51.2472111]
[1734839490727,0.8993,181.92,181.74,23.776884]
[1734839490891,0.8993,181.92,181.82,29.7729111]
[1734839491091,0.8993,181.92,181.83,29.7729111]
[1734839492500,0.8993,181.92,181.84,0.8246437]
[1734839492815,0.8993,181.92,181.84,30.5975548]
[1734839492994,0.11672547,181.85,181.84,30.5975548]
[1734839493705,0.11672547,181.85,181.84,0.8246437]
[1734839495518,0.11672547,181.85,181.84,30.5975548]
[1734839496231,0.11672547,181.85,181.84,19.12502779]
[1734839500026,2.547e-05,181.85,181.84,42.90191179]
[1734839500228,8.26e-05,181.87,181.84,42.90191179]
[1734839500535,9.425e-05,181.89,181.87,23.776884]
[1734839500826,9.425e-05,181.89,181.88,37.42491932]
[1734839501037,3.891e-05,181.9,181.89,6.1677]
[1734839501324,3.917e-05,181.92,181.9,23.776884]
[1734839501626,3.917e-05,181.92,181.91,19.1244665]
[1734839502826,3.917e-05,181.92,181.91,35.07356922]
[1734839503144,0.8993,182.06,181.91,35.07356922]
[1734839503303,1.4173,182.09,182.0,18.30038409]
[1734839503622,1.4173,182.09,182.01,0.82384667]
[1734839504012,1.4173,182.09,182.01,19.12423076]
[1734839504326,1.4173,182.09,182.01,0.82384667]
[1734839504525,1.4173,182.09,182.0,18.30038409]
[1734839504526,1.4173,182.09,181.99,18.30038409]
[1734839504720,1.4173,182.09,181.98,18.30038409]
[1734839504920,1.4173,182.09,181.99,0.8239033]
[1734839505232,1.4173,182.09,182.0,18.30038409]
[1734839505404,1.4173,182.09,182.01,0.82381461]
[1734839505932,1.4173,182.09,182.0,0.82389283]
[1734839506117,1.4173,182.09,181.98,18.30038409]
[1734839506315,1.4173,182.09,181.99,0.8239845]
[1734839507324,1.4173,182.09,181.99,19.12436859]
[1734839507529,1.4173,182.09,182.0,18.30038409]
[1734839507702,1.4173,182.09,182.01,0.82379046]
[1734839507902,0.8993,182.1,182.02,18.30038409]
[1734839508103,0.8993,182.1,182.03,0.82375751]
[1734839508529,0.6732361,182.11,182.06,18.30038409]
[1734839508713,0.6732361,182.11,182.01,20.0]
[1734839508714,0.6732361,182.11,182.09,18.30038409]
[1734839509101,0.6732361,182.11,182.1,19.12385284]
[1734839510234,0.6732361,182.11,182.08,18.30038409]
[1734839511011,0.6732361,182.11,182.06,18.30038409]
[1734839511218,0.6732361,182.11,182.05,19.12375768]
[1734839511418,0.6732361,182.11,182.02,0.82361879]
[1734839511624,0.6732361,182.11,182.02,19.12400288]
[1734839512029,0.6732361,182.11,182.03,29.67639298]
[1734839513127,0.09919441,182.04,182.03,29.67639298]
[1734839513509,0.09919441,182.04,182.02,30.50016054]
[1734839514736,0.09919441,182.04,182.0,29.67639298]
[1734839514938,1.28094089,182.13,182.01,0.82388067]
[1734839515143,20.0,182.09,182.01,29.67639298]
[1734839516639,20.0,182.09,182.0,29.67639298]
[1734839516942,20.0,182.09,182.01,29.67639298]
[1734839517636,20.0,182.09,182.03,29.67639298]
[1734839517838,23.776884,182.12,182.03,29.67639298]
[1734839518135,0.11513658,182.13,182.07,29.67639298]
[1734839518325,0.11513658,182.13,182.08,29.67639298]
[1734839519339,0.11513658,182.13,182.09,29.67639298]
[1734839520021,0.11513658,182.13,182.1,29.67639298]
[1734839520228,0.11513658,182.13,182.1,30.49989214]
[1734839520621,0.11513658,182.13,182.12,29.67639298]
[1734839521838,0.11513658,182.13,182.12,54.27655157]
[1734839522723,0.11513658,182.13,182.12,30.49966757]
[1734839523227,1.1658,182.27,182.12,62.15875157]
[1734839523431,1.1658,182.27,182.19,29.67639298]
[1734839523634,0.6732361,182.29,182.2,0.82299428]
[1734839524040,0.6732361,182.29,182.2,30.49938726]
[1734839524347,0.6732361,182.29,182.23,29.67639298]
[1734839524643,0.6732361,182.29,182.25,29.67639298]
[1734839524943,0.6732361,182.29,182.27,29.67639298]
[1734839525329,0.6732361,182.29,182.28,30.49899696]
[1734839525647,0.6732361,182.29,182.23,15.3368]
[1734839525648,0.6732361,182.29,182.25,29.67639298]
[1734839525858,0.6732361,182.29,182.23,1.6183]
[1734839525859,0.6732361,182.29,182.23,31.29469298]
[1734839526858,0.6732361,182.29,182.22,7.0867435]
[1734839526859,0.6732361,182.29,182.2,49.67639298]
[1734839527023,0.6732361,182.29,182.21,29.67639298]
[1734839527225,0.6732361,182.29,182.22,30.49927942]
[1734839527655,20.0,182.25,182.18,30.49933354]
[1734839528029,20.0,182.25,182.17,37.55859298]
[1734839528338,23.776884,182.24,182.14,29.67639298]
[1734839528553,23.776884,182.24,182.13,37.55859298]
[1734839528754,20.0,182.21,182.12,30.49949973]
[1734839529751,20.0,182.21,182.14,29.67639298]
[1734839529959,20.0,182.21,182.15,29.67639298]
[1734839530657,3.4161361,182.29,182.16,30.49959707]
[1734839530956,20.0,182.25,182.19,29.67639298]
[1734839531446,20.0,182.25,182.16,0.82320409]
[1734839531447,0.6732361,182.29,182.21,29.67639298]
[1734839531654,0.6732361,182.29,182.23,29.67639298]
[1734839531865,0.6732361,182.29,182.24,29.67639298]
[1734839532027,0.6732361,182.29,182.24,0.82282757]
[1734839532735,0.6732361,182.29,182.24,30.49922055]
[1734839532926,0.6732361,182.29,182.26,29.67639298]
[1734839533127,0.11385481,182.27,182.26,29.67639298]
[1734839533964,0.11385481,182.27,182.26,30.499074]
[1734839537069,0.11385481,182.27,182.26,0.82268102]
[1734839537273,0.11385481,182.27,182.24,30.49903774]
[1734839537672,0.11385481,182.27,182.25,29.67639298]
[1734839537875,0.11385481,182.27,182.26,30.49906211]
[1734839538668,0.11385481,182.27,182.26,0.82266913]
[1734839538976,0.11385481,182.27,182.25,0.82282087]
[1734839539156,0.11385481,182.27,182.26,29.67639298]
[1734839539736,0.11385481,182.27,182.26,30.49902742]
[1734839541840,0.11385481,182.27,182.26,67.99251142]
[1734839542184,5.481e-05,182.27,182.26,75.56741142]
[1734839542343,8.823e-05,182.28,182.27,23.776884]
[1734839542549,8.823e-05,182.28,182.27,53.45327698]
[1734839543538,4.215e-05,182.29,182.27,53.45327698]
[1734839543739,2.7398,182.49,182.31,20.0]
[1734839544048,7.664e-05,182.34,182.33,83.12966996]
[1734839544440,7.664e-05,182.34,182.33,53.45327698]
[1734839544887,7.664e-05,182.34,182.33,29.67639298]
[1734839546490,7.664e-05,182.34,182.32,29.67639298]
[1734839546996,7.664e-05,182.34,182.33,29.67639298]
[1734839548695,7.664e-05,182.34,182.32,29.67639298]
[1734839551494,7.664e-05,182.34,182.33,29.67639298]
[1734839551994,7.664e-05,182.34,182.3,30.49881748]
[1734839552308,20.0,182.33,182.26,29.67639298]
[1734839552473,20.0,182.33,182.27,29.67639298]
[1734839552678,20.0,182.33,182.29,29.67639298]
[1734839552903,23.776884,182.4,182.3,29.67639298]
[1734839553110,0.09937136,182.31,182.26,0.82250979]
[1734839553271,0.09937136,182.31,182.3,29.67639298]
[1734839553992,0.09937136,182.31,182.3,30.49884937]
[1734839554511,0.11774798,182.32,182.31,8.1123]
[1734839554808,0.11774798,182.32,182.31,61.56557698]
[1734839556018,8.967e-05,182.34,182.31,91.24196996]
[1734839556190,8.967e-05,182.34,182.33,83.12966996]
[1734839557198,8.967e-05,182.34,182.33,53.45327698]
[1734839557505,8.967e-05,182.34,182.33,54.27555643]
[1734839557909,8.967e-05,182.34,182.33,30.49867243]
[1734839558611,8.967e-05,182.34,182.33,0.82227945]
[1734839559400,8.967e-05,182.34,182.3,30.49883636]
[1734839559595,8.967e-05,182.34,182.29,29.67639298]
[1734839560710,8.967e-05,182.34,182.3,29.67639298]
[1734839563000,8.967e-05,182.34,182.32,29.67639298]
[1734839563209,8.967e-05,182.34,182.33,30.4987947]
[1734839564900,8.967e-05,182.34,182.33,0.82240172]
[1734839566031,8.967e-05,182.34,182.32,29.67639298]
[1734839566189,8.967e-05,182.34,182.31,29.67639298]
[1734839566498,8.967e-05,182.34,182.32,30.49885615]
[1734839567022,8.967e-05,182.34,182.32,0.82246317]
[1734839567448,8.967e-05,182.34,182.32,30.49885615]
[1734839567612,8.967e-05,182.34,182.33,29.67639298]
[1734839567809,8.967e-05,182.34,182.33,30.4987588]
[1734839568009,8.967e-05,182.34,182.33,0.82236582]
[1734839568331,8.967e-05,182.34,182.33,30.4987588]
[1734839572260,23.776884,182.44,182.33,19.02376714]
[1734839572539,23.776884,182.44,182.35,18.20140132]
[1734839572742,23.776884,182.44,182.36,0.82226722]
[1734839573142,0.1054702,182.37,182.36,0.82226722]
[1734839573947,0.1054702,182.37,182.36,19.02366854]
[1734839575561,0.1054702,182.37,182.34,18.20140132]
[1734839575774,0.1054702,182.37,182.33,18.20140132]
[1734839575921,0.1054702,182.37,182.34,0.82240805]
[1734839576121,0.1054702,182.37,182.34,19.02380937]
[1734839578337,0.1054702,182.37,182.35,18.20140132]
[1734839578544,0.1054702,182.37,182.36,0.82231654]
[1734839581242,0.1054702,182.37,182.33,18.20140132]
[1734839581539,0.1054702,182.37,182.34,0.82241568]
[1734839583856,0.1054702,182.37,182.33,9.023817]
[1734839584057,0.1054702,182.37,182.34,19.02379566]
[1734839586561,0.1054702,182.37,182.27,13.7159]
[1734839586562,0.1054702,182.37,182.31,18.20140132]
[1734839586737,0.1054702,182.37,182.3,18.20140132]
[1734839586940,0.1054702,182.37,182.32,18.20140132]
[1734839587144,0.1054702,182.37,182.34,18.20140132]
[1734839587364,0.1054702,182.37,182.35,19.02381535]
[1734839587557,0.1054702,182.37,182.36,18.20140132]
[1734839588143,0.1054702,182.37,182.34,18.20140132]
[1734839588460,0.1054702,182.37,182.33,18.20140132]
[1734839589052,0.1054702,182.37,182.34,0.82248382]
[1734839589448,0.1054702,182.37,182.29,18.20140132]
[1734839589647,23.8823542,182.37,182.27,0.82245126]
[1734839589875,0.1054702,182.37,182.3,18.20140132]
[1734839590058,0.1054702,182.37,182.31,19.02390982]
[1734839590680,20.0,182.35,182.31,0.8225085]
[1734839590988,0.1054702,182.37,182.32,18.20140132]
[1734839591162,0.1054702,182.37,182.33,0.82241155]
[1734839591357,0.1054702,182.37,182.33,19.02381287]
[1734839591676,0.1054702,182.37,182.34,18.20140132]
[1734839591879,0.1054702,182.37,182.35,0.8223867]
[1734839592391,20.0,182.41,182.33,18.20140132]
[1734839592597,20.0,182.41,182.32,18.20140132]
[1734839593096,0.10172346,182.33,182.32,18.20140132]
[1734839596955,0.10172346,182.33,182.31,18.20140132]
[1734839597154,0.10172346,182.33,182.32,0.82244032]
[1734839598475,0.10172346,182.33,182.31,18.20140132]
[1734839598805,0.10172346,182.33,182.29,0.82243571]
[1734839599465,0.10172346,182.33,182.31,18.20140132]
[1734839599701,0.10172346,182.33,182.32,0.82247252]
[1734839601976,0.10172346,182.33,182.3,0.82250317]
[1734839603105,0.10172346,182.33,182.26,1.5044]
[1734839603307,0.10172346,182.33,182.27,0.82275833]
[1734839604295,0.10172346,182.33,182.25,0.82271384]
[1734839604505,0.10172346,182.33,182.25,12.20292345]
[1734839605399,0.10172346,182.33,182.26,11.38020961]
[1734839605600,0.10172346,182.33,182.27,0.82262385]
[1734839608019,0.10172346,182.33,182.27,12.20283346]
[1734839608315,0.10172346,182.33,182.27,0.82262385]
[1734839612309,20.0,182.33,182.27,0.82262385]
[1734839613022,0.10811662,182.28,182.27,0.82262385]
[1734839613894,0.10811662,182.28,182.26,0.82270184]
[1734839614120,0.10811662,182.28,182.26,12.20291145]
[1734839615023,0.10811662,182.28,182.26,0.82270184]
[1734839615525,0.10811662,182.28,182.27,0.82272296]
[1734839615820,0.10811662,182.28,182.16,10.46884243]
[1734839615821,23.776884,182.23,182.16,8.27342343]
[1734839615986,20.0,182.2,182.16,8.27342343]
[1734839616322,20.0,182.19,182.16,8.27342343]
[1734839616622,20.0,182.19,182.12,0.82326995]
[1734839616788,20.0,182.19,182.1,0.82334936]
[1734839617821,20.0,182.19,182.09,0.82340179]
[1734839618728,20.0,182.19,182.1,18.25241562]
[1734839618918,20.0,182.19,182.09,19.07581741]
[1734839619221,24.59929968,182.18,182.09,0.82340179]
[1734839619519,20.0,182.15,182.09,0.82340179]
[1734839619823,20.0,182.15,182.07,0.82344558]
[1734839622410,20.0,182.15,182.07,19.0758612]
[1734839624532,20.0,182.15,182.09,18.25241562]
[1734839625115,20.0,182.15,182.08,18.25241562]
[1734839625326,20.0,182.15,182.09,0.8234447]
[1734839633049,0.10561397,182.1,182.09,0.8234447]
[1734839640833,0.10735828,182.11,182.1,23.776884]
[1734839641024,0.10735828,182.11,182.1,48.91467908]
[1734839641228,0.10735828,182.11,182.1,49.73789628]
[1734839641437,0.10735828,182.11,182.1,55.78239628]
[1734839643057,0.10735828,182.11,182.1,57.29289628]
[1734839643363,0.10735828,182.11,182.1,33.51601228]
[1734839643543,0.10735828,182.11,182.1,19.78731228]
[1734839647066,0.10735828,182.11,182.09,11.40909508]
[1734839647239,0.10735828,182.11,182.1,0.82344567]
[1734839647627,0.10735828,182.11,182.08,0.82354525]
[1734839649049,0.10735828,182.11,182.09,0.82352576]
[1734839649746,0.10735828,182.11,182.09,12.23262084]
[1734839651464,0.10735828,182.11,182.09,0.82352576]
[1734839651843,0.10735828,182.11,182.07,0.82356161]
[1734839652171,0.82241568,182.19,182.07,12.23265669]
[1734839652355,20.0,182.15,182.07,12.23265669]
[1734839653071,0.11207469,182.08,182.07,12.23265669]
[1734839653650,0.11207469,182.08,182.07,0.82356161]
[1734839653846,0.11207469,182.08,182.07,11.40909508]
[1734839654851,0.11207469,182.08,182.07,12.23261118]
[1734839656448,0.11207469,182.08,182.07,49.74039518]
[1734839656675,0.11422647,182.09,182.07,49.74039518]
[1734839656863,0.11422647,182.09,182.08,35.18597908]
[1734839657394,0.11422647,182.09,182.08,11.40909508]
[1734839658473,0.11422647,182.09,182.08,0.82352502]
[1734839658866,0.11422647,182.09,182.07,0.82365305]
[1734839660051,0.11422647,182.09,182.08,0.82364008]
[1734839661208,0.11422647,182.09,182.07,0.82362623]
[1734839662470,0.11422647,182.09,182.05,12.23273043]
[1734839662671,0.11422647,182.09,182.08,0.82363535]
[1734839663391,0.11422647,182.09,182.06,0.82362661]
[1734839665187,0.11422647,182.09,182.06,12.23272169]
[1734839665488,0.11422647,182.09,182.08,11.40909508]
[1734839665672,0.11422647,182.09,182.08,36.00941595]
[1734839666588,2.647e-05,182.09,182.08,36.00941595]
[1734839666785,3.606e-05,182.1,182.09,37.506284]
[1734839666987,3.606e-05,182.1,182.09,48.91537908]
[1734839667183,6.384e-05,182.11,182.09,49.04086908]
[1734839667372,6.384e-05,182.11,182.1,36.00909773]
[1734839671099,6.384e-05,182.11,182.1,38.17589529]
[1734839672194,23.776884,182.24,182.11,13.7279]
[1734839672376,1.98821568,182.25,182.12,24.60001998]
[1734839672990,20.0,182.21,182.12,12.23223106]
[1734839673195,0.10776168,182.13,182.12,0.82313598]
[1734839673700,0.10776168,182.13,182.12,12.23223106]
[1734839690301,0.10776168,182.13,182.12,36.00911506]
[1734839692224,0.130262,214.63,182.13,23.776884]
[1734839692388,21.1658,182.25,182.15,11.40909508]
[1734839692687,1.1658,182.25,182.16,0.8231258]
[1734839693120,0.10482616,182.17,182.16,0.8231258]
[1734839698014,0.10482616,182.17,182.16,12.23222088]
[1734839698526,0.10482616,182.17,182.16,0.8231258]
[1734839700499,0.10482616,182.17,182.16,23.64131596]
[1734839700893,0.10482616,182.17,182.16,12.23222088]
[1734839701717,0.10482616,182.17,182.16,36.00910488]
[1734839702602,0.10482616,182.17,182.16,47.41819996]
[1734839703117,0.10482616,182.17,182.16,18.35472088]
[1734839703619,0.10482616,182.17,182.16,6.9456258]
[1734839703820,0.10482616,182.17,182.16,20.8231258]
[1734839704126,0.10482616,182.17,182.16,32.23222088]
[1734839706426,0.10897138,182.18,182.17,57.500284]
[1734839706720,0.10897138,182.18,182.17,48.90937908]
[1734839707108,7.138e-05,182.18,182.17,48.90937908]
[1734839709227,8.08e-05,182.19,182.17,55.15736908]
[1734839709418,8.08e-05,182.19,182.18,36.0087645]
[1734839709596,1.1658,182.33,182.2,20.0]
[1734839709800,0.04200617,182.24,182.21,57.52620988]
[1734839709999,1.98821568,182.37,182.24,23.776884]
[1734839710210,1.1658,182.37,182.25,36.00857596]
[1734839710413,1.1658,182.37,182.25,47.41767104]
[1734839711431,1.1658,182.37,182.25,61.13507104]
[1734839712426,1.1658,182.37,182.29,11.40909508]
[1734839712730,1.1658,182.37,182.3,0.82251261]
[1734839713034,1.1658,182.37,182.3,12.23160769]
[1734839713239,0.1008086,182.31,182.3,12.23160769]
[1734839714534,0.1008086,182.31,182.3,36.00849169]
[1734839714841,0.01725079,182.33,182.31,37.489784]
[1734839715049,0.01725079,182.33,182.32,36.00820717]
[1734839715212,0.01725079,182.33,182.32,42.65559717]
[1734839715546,4.704e-05,182.34,182.33,23.776884]
[1734839715716,4.704e-05,182.34,182.33,46.59507416]
[1734839716654,4.704e-05,182.34,182.33,35.18597908]
[1734839717314,4.704e-05,182.34,182.32,7.34412809]
[1734839717513,4.704e-05,182.34,182.33,11.40909508]
[1734839722948,4.704e-05,182.34,182.32,0.82222809]
[1734839725120,4.704e-05,182.34,182.29,0.82245415]
[1734839725327,4.704e-05,182.34,182.26,0.82261594]
[1734839726355,4.704e-05,182.34,182.25,0.82276815]
[1734839726559,23.77693104,182.34,182.25,0.82276815]
[1734839726854,0.82241568,182.33,182.25,0.82276815]
[1734839727050,20.0,182.29,182.22,0.82279149]
[1734839727553,20.0,182.29,182.2,12.23208477]
[1734839727753,20.82241568,182.29,182.2,12.23208477]
[1734839728129,20.82241568,182.29,182.2,0.82298969]
[1734839728772,23.776884,182.28,182.2,0.82298969]
[1734839729456,24.59929968,182.28,182.2,0.82298969]
[1734839729822,20.0,182.25,182.2,0.82298969]
[1734839730030,20.0,182.25,182.19,0.82307238]
[1734839731164,20.0,182.25,182.18,0.82306381]
[1734839731330,20.0,182.25,182.18,19.05648659]
[1734839731962,20.0,182.25,182.17,18.23342278]
[1734839731963,0.82241568,182.24,182.17,18.23342278]
[1734839732261,20.0,182.25,182.16,19.05649449]
[1734839732854,20.0,182.25,182.17,18.23342278]
[1734839733052,0.11771249,182.17,182.16,18.23342278]
[1734839733359,0.11771249,182.17,182.13,18.23342278]
[1734839733561,0.11771249,182.17,182.11,19.05677191]
[1734839733773,0.11771249,182.17,182.11,0.82334913]
[1734839734559,0.11771249,182.17,182.12,0.82345476]
[1734839735659,0.11771249,182.17,182.15,18.23342278]
[1734839735862,0.11771249,182.17,182.16,0.82320489]
[1734839736565,0.11771249,182.17,182.16,19.05662767]
[1734839743067,0.11771249,182.17,182.16,0.82320489]
[1734839743264,0.11771249,182.17,182.16,19.05662767]
[1734839745586,0.11771249,182.17,182.16,42.83351167]
[1734839746596,0.11771249,182.17,182.16,43.18812067]
[1734839747499,0.10613315,182.21,182.18,23.776884]
[1734839747660,0.08613315,182.21,182.2,62.01030678]
[1734839748964,0.08613315,182.21,182.2,75.73140678]
[1734839749863,0.08613315,182.21,182.2,51.95452278]
[1734839751190,0.08613315,182.21,182.2,75.73140678]
[1734839751686,3.315e-05,182.21,182.2,75.73140678]
[1734839752292,3.9076,182.36,182.21,23.776884]
[1734839752462,0.82241568,182.35,182.25,18.23342278]
[1734839753089,0.10087453,182.26,182.25,18.23342278]
[1734839753270,0.10087453,182.26,182.24,18.23342278]
[1734839753470,0.10087453,182.26,182.25,0.82273083]
[1734839753991,0.10087453,182.26,182.25,19.05615361]
[1734839757697,0.10087453,182.26,182.25,42.83303761]
[1734839758297,0.10087453,182.26,182.25,61.06646039]
[1734839758979,0.10087453,182.26,182.25,24.59961483]
[1734839759183,0.10087453,182.26,182.25,61.06646039]
[1734839759381,0.10087453,182.26,182.25,42.83303761]
[1734839759578,0.10087453,182.26,182.25,19.05615361]
[1734839759777,0.10087453,182.26,182.25,0.82273083]
[1734839759979,0.10087453,182.26,182.25,19.05615361]
[1734839761809,0.10087453,182.26,182.25,0.82273083]
[1734839761988,0.10087453,182.26,182.24,0.82279457]
[1734839763106,0.10087453,182.26,182.25,0.82283045]
[1734839763575,0.10087453,182.26,182.23,0.8228528]
[1734839763770,0.10087453,182.26,182.19,0.82293988]
[1734839764080,20.0,182.23,182.17,0.8230961]
[1734839767004,20.0,182.23,182.17,19.05651888]
[1734839767173,20.0,182.23,182.17,0.8230961]
[1734839767810,20.0,182.23,182.16,1.17775246]
[1734839768303,20.0,182.23,182.17,18.23342278]
[1734839768477,20.0,182.23,182.18,0.82311159]
[1734839768892,1.1658,182.25,182.18,0.82311159]
[1734839769188,0.10087453,182.26,182.2,18.23342278]
[1734839769487,0.10087453,182.26,182.21,0.82295091]
[1734839772291,20.0,182.26,182.21,0.82295091]
[1734839772907,20.0,182.26,182.19,19.05640506]
[1734839773100,0.11862447,182.22,182.19,19.05640506]
[1734839774001,0.11862447,182.22,182.2,0.82298281]
[1734839774513,0.11862447,182.22,182.16,0.354609]
[1734839774514,0.11862447,182.22,182.17,18.23342278]
[1734839774806,0.11862447,182.22,182.16,19.41100896]
[1734839775591,0.11862447,182.22,182.17,18.23342278]
[1734839775812,0.11862447,182.22,182.18,19.05649707]
[1734839776007,23.776884,182.21,182.16,0.354609]
[1734839776181,23.776884,182.17,182.16,0.354609]
[1734839776380,23.776884,182.13,182.06,8.47021066]
[1734839776613,20.0,182.1,182.06,8.47021066]
[1734839777621,20.0,182.1,182.03,19.05716461]
[1734839780035,20.0,182.1,182.04,18.23342278]
[1734839780537,20.0,182.1,182.03,19.05711501]
[1734839781362,20.0,182.1,182.04,18.23342278]
[1734839781822,20.0,182.1,182.03,18.23342278]
[1734839782739,20.0,182.1,182.04,18.23342278]
[1734839783544,6.22830926,182.18,182.08,18.23342278]
[1734839783736,0.82241568,182.17,182.08,18.23342278]
[1734839784208,0.82241568,182.21,182.08,18.23342278]